lending/lending_fUSD_20240411
["ID","MTS","AMOUNT","RATE_DAILY","PERIOD"]
[322139535,1712843443435,-5829.29953331,0.00020999,2]
[322139536,1712843443444,-300.0,0.00020999,2]
[322139537,1712843443454,-300.0,0.00020999,2]
[322139538,1712843443463,-300.0,0.00020999,2]
[322139539,1712843443472,-300.0,0.00020999,2]
[322139540,1712843443481,-300.0,0.00020999,2]
[322139541,1712843443490,-300.0,0.00020999,2]
[322139542,1712843443502,-300.0,0.00020999,2]
[322139543,1712843443511,-300.0,0.00020999,2]
[322139544,1712843443521,-384.49914275,0.00020999,2]
[322139545,1712843443530,-500.0,0.00020999,2]
[322139546,1712843443539,-393.34390789,0.00020999,2]
[322139547,1712843443549,-500.0,0.00020999,2]
[322139548,1712843443559,-500.0,0.00020999,2]
[322139549,1712843443569,-500.0,0.00020999,2]
[322139550,1712843443578,-500.0,0.00020999,2]
[322139551,1712843443588,-500.0,0.00020999,2]
[322139552,1712843443597,-542.69852873,0.00020999,2]
[322139553,1712843443606,-712.0,0.00021,2]
[322139554,1712843443615,-194.22149448,0.00021,2]
[322139555,1712843443624,-55365.41554715,0.00021,2]
[322139556,1712843443636,-820.15238211,0.00021,2]
[322139557,1712843443661,-264.4956,0.00021,2]
[322139558,1712843443672,-1186.04783992,0.00021,2]
[322139559,1712843443688,-1749.0,0.00021,2]
[322139578,1712843443944,-6980.29999999,0.00021,2]
[322139582,1712843444088,-70000.00000001,0.00021,2]
[322139583,1712843444107,-3709.8696556,0.00021,2]
[322139584,1712843444120,-1176.622849,0.00021,2]
[322139585,1712843444145,-1199.9967105,0.00021,2]
[322139586,1712843444157,-2982.36491816,0.00021,2]
[322139587,1712843444169,-2110.24183481,0.00021,2]
[322139588,1712843444182,-5579.91275744,0.00021,2]
[322139589,1712843444203,-35332.10587759,0.00021,2]
[322139590,1712843444224,-11932.40260919,0.00021,2]
[322139591,1712843444237,-9241.33782,0.00021,2]
[322139592,1712843444270,-7559.05749779,0.00021,2]
[322139634,1712843446004,-304.04500458,0.00020798,2]
[322139636,1712843446016,-731.73361366,0.00020798,2]
[322139637,1712843446028,-2716.55309291,0.00020798,2]
[322139638,1712843446038,-251.044201,0.00020999,2]
[322139639,1712843446047,-36122.71485544,0.00021,2]
[322139640,1712843446060,-8592.8842503,0.00021,2]
[322139641,1712843446074,-1257775.42314055,0.00021,2]
[322139642,1712843446090,-1203.16964938,0.00021,2]
[322139643,1712843446107,-632.93814097,0.00021,2]
[322139644,1712843446118,-10503.0,0.00021,2]
[322139645,1712843446173,-1825.79,0.00021,2]
[322139646,1712843446396,-1324.74612541,0.00021,2]
[322139647,1712843446416,-68214.05507172,0.00021,2]
[322139649,1712843512445,3004.51728002,0.00020367,2]
[322139650,1712843584268,150.5,0.0002099,15]
[322139651,1712843584821,150.5,0.0002098,15]
[322139652,1712843585742,253.73,0.0002097,15]
[322139654,1712843632019,356.79,0.00018173,2]
[322139655,1712843632445,356.79,0.00020437,2]
[322139657,1712843644595,3004.51728002,0.00020406,2]
[322139659,1712843700616,174.63,0.00020231,2]
[322139660,1712843700850,174.63,0.00020442,2]
[322139661,1712843716147,157.92490406,0.00020466,2]
[322139662,1712843785906,927.4,0.00020057,2]
[322139663,1712843821645,5292.68,0.00020032,2]
[322139664,1712843965425,1000.0,0.00020043,2]
[322139665,1712844044981,3504.63296154,0.00033314,30]
[322139666,1712844086539,373.51,0.00020187,2]
[322139667,1712844288435,617.93,0.00020049,2]
[322139668,1712844354008,321.11,0.00018122,2]
[322139669,1712844354232,321.11,0.00020386,2]
[322139670,1712844437910,200.0,0.00020022,2]
[322139671,1712844491257,174.63,0.00020173,2]
[322139703,1712844631863,-155.0,0.00020519,2]
[322139705,1712844631873,-809.66168614,0.0002052,2]
[322139707,1712844631884,-1033.40107976,0.0002052,2]
[322139709,1712844631895,-174.63,0.00020523,2]
[322139711,1712844631905,-1000.0,0.000207,2]
[322139713,1712844631915,-1000.0,0.000207,2]
[322139715,1712844631925,-3004.51728002,0.00020709,2]
[322139716,1712844631934,-23973.08154546,0.00020721,2]
[322139717,1712844631944,-579.96742,0.0002079,2]
[322139718,1712844631955,-1239.24531074,0.00020798,2]
[322139719,1712844631965,-752.57520526,0.00020799,2]
[322139720,1712844631976,-786.78937199,0.000208,2]
[322139721,1712844632084,-463.75,0.000208,2]
[322139722,1712844632194,-556.96822193,0.000208,2]
[322139737,1712844637818,-52251.29680608,0.000208,2]
[322139739,1712844637828,-1000.0,0.000208,2]
[322139741,1712844637838,-16980.75681803,0.000208,2]
[322139746,1712844638158,-1201.38704282,0.000208,2]
[322139747,1712844638172,-5120.24499712,0.000208,2]
[322139748,1712844638184,-2598.58306665,0.000208,2]
[322139749,1712844638195,-787.3864673,0.000208,2]
[322139883,1712844640060,-530.33718974,0.000208,2]
[322139884,1712844640073,-629.7055494,0.000208,2]
[322139885,1712844640084,-421.793,0.000208,2]
[322139886,1712844640094,-751.63617783,0.000208,2]
[322139887,1712844640174,-260.2144574,0.000208,2]
[322139888,1712844640187,-2691.43936477,0.000208,2]
[322139889,1712844640199,-163.64307113,0.000208,2]
[322139890,1712844640232,-961.11018,0.000208,2]
[322139895,1712844642882,-1589.9370164,0.000208,2]
[322139896,1712844642896,-646.49789426,0.000208,2]
[322139897,1712844643009,-692.6645731,0.000208,2]
[322139898,1712844643019,-277.6677,0.00020832,2]
[322139899,1712844643029,-1000.0,0.00020832,2]
[322139900,1712844643038,-432.46369473,0.00020832,2]
[322139901,1712844643271,-67.53630527,0.00020832,2]
[322139902,1712844643280,-200.0,0.00020832,2]
[322139903,1712844643290,-236.46169473,0.00020832,2]
[322139904,1712844643302,-74.80830527,0.00020832,2]
[322139905,1712844643311,-905.04,0.00020832,2]
[322139906,1712844643321,-499.99,0.00020832,2]
[322139907,1712844643330,-119.90172889,0.00020873,2]
[322139908,1712844643350,-54.72827111,0.00020873,2]
[322139909,1712844643360,-266.91508861,0.000209,2]
[322139910,1712844643379,-1768.4015962,0.000209,2]
[322139931,1712844645883,-608.8608,0.00020899,2]
[322139933,1712844645897,-306.46757217,0.00020899,2]
[322139943,1712844646226,-2.52306387,0.00020899,2]
[322139944,1712844646236,-2394.99253929,0.000209,2]
[322139945,1712844646247,-2343.36758848,0.000209,2]
[322139946,1712844646258,-436.77897849,0.000209,2]
[322139947,1712844664570,196.48572478,0.00019948,2]
[322139948,1712844675228,1308.58983327,0.00019853,2]
[322139949,1712844705528,6753.3204,0.00020423,2]
[322139950,1712844749781,155.0,0.0002048,2]
[322139951,1712844793371,411.62,0.00020062,2]
[322139952,1712844810513,207.97,0.00020041,2]
[322139953,1712844826960,168.64,0.00020041,2]
[322139954,1712844876693,364.34,0.00018105,2]
[322139955,1712844876909,364.34,0.00020369,2]
[322139956,1712844919781,840.0,0.00020023,2]
[322139957,1712844965575,-443.47024588,0.00020583,2]
[322139958,1712844965597,-447.31444638,0.00020584,2]
[322139959,1712844965619,-408.29949908,0.00020585,2]
[322139960,1712844965641,-157.92490406,0.00020588,2]
[322139961,1712844965666,-1542.9909046,0.0002067,2]
[322139962,1712844966390,-3000.0,0.0002067,2]
[322139963,1712844966933,-993.09795656,0.0002067,2]
[322139964,1712844966956,-1000.0,0.00020671,2]
[322139965,1712844966978,-1006.90204344,0.00020688,2]
[322139966,1712844967459,-353.15407111,0.00020688,2]
[322139967,1712844967482,-298.51979636,0.00020689,2]
[322139968,1712844967504,-251.044201,0.00020788,2]
[322139969,1712844967527,-150.0,0.00020799,2]
[322139970,1712844967549,-752.04923796,0.000208,2]
[322139971,1712844967570,-678.5201,0.000208,2]
[322139972,1712844967592,-516.71259357,0.000208,2]
[322139973,1712844968030,-3000.0,0.000208,2]
[322139974,1712844968404,-3000.0,0.000208,2]
[322139975,1712844968923,-3000.0,0.000208,2]
[322139976,1712844969385,-3000.0,0.000208,2]
[322139977,1712844969943,-3000.0,0.000208,2]
[322139978,1712844970465,-3000.0,0.000208,2]
[322139979,1712844971170,-3000.0,0.000208,2]
[322139980,1712844971688,-3000.0,0.000208,2]
[322139981,1712844972216,-1238.03053993,0.000208,2]
[322139982,1712844972239,-1761.96946007,0.000208,2]
[322139983,1712844972763,-3000.0,0.000208,2]
[322139984,1712844973315,-2533.48353993,0.000208,2]
[322139985,1712844973338,-466.51646007,0.00020832,2]
[322139986,1712844973835,-533.48353993,0.00020832,2]
[322139987,1712844973857,-200.0,0.00020832,2]
[322139988,1712844973879,-2266.51646007,0.00020877,4]
[322139989,1712844974346,-3000.0,0.00020877,4]
[322139990,1712844974904,-3000.0,0.00020877,4]
[322139991,1712844976044,-3000.0,0.00020877,4]
[322139992,1712844976274,-2288.67319609,0.00020877,4]
[322139993,1712844976297,-711.32680391,0.00020898,2]
[322139994,1712844999046,195.83588016,0.00020023,2]
[322139995,1712845010980,150.0,0.00020098,2]
[322139996,1712845030319,-3000.0,0.00020737,2]
[322139997,1712845031404,-3000.0,0.00020737,2]
[322139998,1712845031608,-3000.0,0.00020737,2]
[322139999,1712845031961,-3000.0,0.00020737,2]
[322140000,1712845032504,-3000.0,0.00020737,2]
[322140001,1712845032924,-3000.0,0.00020737,2]
[322140002,1712845033390,-3000.0,0.00020737,2]
[322140003,1712845033810,-3000.0,0.00020737,2]
[322140004,1712845034315,-3000.0,0.00020737,2]
[322140005,1712845034750,-878.42997445,0.00020737,2]
[322140006,1712845034774,-2121.57002555,0.00020737,2]
[322140007,1712845035226,-3000.0,0.00020737,2]
[322140008,1712845035947,-3000.0,0.00020737,2]
[322140009,1712845036990,-3000.0,0.00020737,2]
[322140010,1712845038532,22306.51,0.0002009,2]
[322140011,1712845040322,6357.28,0.0002009,2]
[322140012,1712845042901,-1000.0,0.00020737,2]
[322140013,1712845062184,864.21551973,0.00020098,2]
[322140014,1712845070168,-1000.0,0.00020547,2]
[322140015,1712845070712,-1000.0,0.00020547,2]
[322140016,1712845071289,-103.99279171,0.00020547,2]
[322140017,1712845071312,-896.00720829,0.00020547,2]
[322140018,1712845072628,-884.91705904,0.00020547,2]
[322140019,1712845072650,-115.08294096,0.00020548,2]
[322140020,1712845073475,-1000.0,0.00020548,2]
[322140021,1712845075032,-1000.0,0.00020548,2]
[322140022,1712845075857,-379.15705904,0.00020548,2]
[322140023,1712845075882,-620.84294096,0.00020737,2]
[322140024,1712845076922,200.0,0.000205,7]
[322140025,1712845079118,500.0,0.000206,7]
[322140026,1712845080500,-620.76154745,0.00020547,2]
[322140027,1712845080526,-175.72,0.0002063,2]
[322140028,1712845080548,-53.51845255,0.00020737,2]
[322140029,1712845081458,800.0,0.000207,7]
[322140030,1712845083412,1000.0,0.000208,7]
[322140031,1712845085435,1300.0,0.000209,7]
[322140032,1712845112499,200.0,0.00020055,2]
[322140033,1712845208374,200.0,0.00020008,2]
[322140034,1712845252407,250.0,0.00019999,2]
[322140035,1712845284433,323.47,0.00019981,2]
[322140036,1712845342046,409.27,0.00019995,2]
[322140037,1712845342267,409.27,0.0002,2]
[322140038,1712845342510,409.27,0.00020006,2]
[322140039,1712845342748,409.27,0.00020011,2]
[322140040,1712845342956,409.27,0.00020016,2]
[322140041,1712845343212,409.27,0.00020021,2]
[322140042,1712845343433,409.27,0.00020027,2]
[322140043,1712845343669,409.27,0.00020032,2]
[322140044,1712845343896,409.27,0.00020037,2]
[322140045,1712845344181,409.27,0.00020042,2]
[322140046,1712845344679,409.27,0.00020048,2]
[322140047,1712845344813,409.27,0.00020053,2]
[322140048,1712845344897,409.27,0.00020058,2]
[322140049,1712845345133,409.27,0.00020064,2]
[322140050,1712845345362,409.27,0.00020069,2]
[322140051,1712845345607,409.27,0.00020074,2]
[322140052,1712845345834,409.27,0.00020079,2]
[322140053,1712845346282,409.27,0.00020085,2]
[322140054,1712845346540,409.27,0.0002009,2]
[322140055,1712845346741,409.27,0.00020095,2]
[322140056,1712845359476,500.0,0.00019995,2]
[322140057,1712845368952,442.62,0.00018077,2]
[322140058,1712845369215,442.62,0.00020341,2]
[322140059,1712845402559,236.14,0.00019996,2]
[322140060,1712845412850,328.0,0.00019996,2]
[322140061,1712845419026,2838.35,0.00019996,2]
[322140062,1712845442926,500.0,0.00019996,2]
[322140063,1712845443989,998.94,0.00019996,2]
[322140064,1712845446676,963.64,0.0002016,2]
[322140065,1712845446825,963.64,0.00020215,2]
[322140066,1712845447249,963.64,0.0002027,2]
[322140067,1712845448215,963.64,0.00020326,2]
[322140068,1712845448291,963.64,0.00020381,2]
[322140069,1712845448405,963.64,0.00020436,2]
[322140070,1712845448600,963.64,0.00020491,2]
[322140071,1712845540227,195.91,0.000199,2]
[322140072,1712845579014,150.0,0.00019923,2]
[322140096,1712845832048,-1780.92426733,0.0002051,2]
[322140098,1712845832058,-150.0,0.0002051,2]
[322140100,1712845832067,-300.0,0.0002051,2]
[322140101,1712845832077,-15233.82573267,0.0002051,2]
[322140104,1712845832103,-67.43919869,0.0002051,2]
[322140106,1712845832114,-43180.57173999,0.00020511,2]
[322140108,1712845832123,-963.64,0.00020547,2]
[322140109,1712845832133,-963.64,0.00020602,2]
[322140110,1712845832143,-963.64,0.00020657,2]
[322140111,1712845832151,-167.35,0.00020685,2]
[322140112,1712845832160,-222.96275,0.0002069,2]
[322140113,1712845832170,-28072.545007,0.000207,2]
[322140114,1712845832180,-13910.74,0.00020713,2]
[322140115,1712845832189,-863.16,0.00020713,2]
[322140116,1712845832198,-963.64,0.00020713,2]
[322140117,1712845832208,-5568.48644252,0.00020723,2]
[322140118,1712845832217,-319.05117938,0.00020723,2]
[322140119,1712845832226,-2636.04823242,0.00020723,2]
[322140120,1712845832236,-9999.99,0.00020767,2]
[322140121,1712845832246,-999.99,0.00020767,2]
[322140122,1712845832259,-963.64,0.00020768,2]
[322140123,1712845832268,-175.88,0.0002079,3]
[322140124,1712845832278,-391.19741228,0.00020798,2]
[322140125,1712845832289,-621.31864924,0.00020798,2]
[322140126,1712845832299,-232.37735178,0.00020798,2]
[322140127,1712845832308,-778.65118365,0.00020799,2]
[322140128,1712845832318,-1063.49,0.00020799,2]
[322140129,1712845832327,-499.99,0.00020799,2]
[322140130,1712845832337,-98398.8077,0.000208,2]
[322140131,1712845832347,-202549.4314,0.000208,2]
[322140132,1712845832357,-963.64,0.00020823,2]
[322140133,1712845832366,-436.42141068,0.00020877,2]
[322140134,1712845832376,-1034.32102367,0.00020877,2]
[322140135,1712845832386,-6572.57346569,0.00020877,2]
[322140136,1712845832396,-963.64,0.00020878,2]
[322140137,1712845832406,-1129.77076455,0.00020898,2]
[322140138,1712845832416,-1254.03701596,0.00020898,2]
[322140139,1712845832428,-155.0,0.00020898,2]
[322140140,1712845832438,-1593.84498793,0.00020898,2]
[322140141,1712845832448,-236.18996574,0.00020898,2]
[322140142,1712845832457,-208.07346095,0.00020898,2]
[322140144,1712845832467,-3793.28801808,0.00020898,2]
[322140145,1712845832481,-4718.36355901,0.00020898,2]
[322140146,1712845832491,-550.75005717,0.00020898,2]
[322140147,1712845832502,-1140.14630349,0.00020898,2]
[322140148,1712845832512,-12802.6022,0.00020898,2]
[322140149,1712845832522,-5769.71485404,0.000209,2]
[322140151,1712845832532,-187.94910268,0.000209,2]
[322140152,1712845832541,-173.70619217,0.000209,2]
[322140153,1712845832550,-7500.0,0.000209,2]
[322140154,1712845832561,-3037.54546083,0.000209,2]
[322140155,1712845832570,-152.16022454,0.000209,2]
[322140156,1712845832579,-593.75582218,0.000209,2]
[322140157,1712845832588,-4554.50124953,0.000209,2]
[322140158,1712845832598,-820.66281129,0.000209,2]
[322140159,1712845832607,-152.87406506,0.000209,2]
[322140160,1712845832616,-963.64,0.00020934,2]
[322140161,1712845832625,-963.64,0.00020989,2]
[322140162,1712845832634,-777.13744957,0.00020998,2]
[322140163,1712845832644,-1805.61590668,0.00020998,2]
[322140164,1712845832654,-342.50720573,0.00020998,2]
[322140165,1712845832665,-155.0,0.00020998,2]
[322140166,1712845832674,-404.73102028,0.00020998,2]
[322140167,1712845832684,-1044.54849104,0.00020998,2]
[322140168,1712845832693,-407.47196267,0.00020998,2]
[322140169,1712845832703,-295.64140412,0.00020998,2]
[322140170,1712845832712,-446.82837259,0.00020998,2]
[322140171,1712845832722,-478.27695702,0.00020998,2]
[322140172,1712845832731,-5532.29102616,0.00020998,2]
[322140173,1712845832741,-325.04470529,0.00020998,2]
[322140174,1712845832753,-10689.84693621,0.00020998,2]
[322140175,1712845832762,-3056.72436352,0.00020998,2]
[322140176,1712845832771,-178.35814172,0.00020999,2]
[322140177,1712845832781,-1140.47131952,0.00020999,2]
[322140178,1712845832791,-309.30752411,0.00020999,2]
[322140179,1712845832800,-203.2822293,0.00020999,2]
[322140180,1712845832809,-500.0,0.00020999,2]
[322140181,1712845832818,-417.23687904,0.00020999,2]
[322140182,1712845832829,-500.0,0.00020999,2]
[322140183,1712845832839,-417.49877445,0.00020999,2]
[322140184,1712845832849,-1545.92,0.00021,2]
[322140185,1712845832859,-722.0,0.00021,2]
[322140186,1712845832868,-598543.76550519,0.00021,2]
[322140187,1712845832903,-779.66696814,0.000209,2]
[322140188,1712845832912,-13436.56013882,0.00021,2]
[322140189,1712845832933,-598.12679499,0.00021,2]
[322140190,1712845832968,-6055.9025272,0.00021,2]
[322140191,1712845832988,-5541.89764,0.00021,2]
[322140192,1712845833002,-18268.08984003,0.00021,2]
[322140193,1712845833018,-81875.02165,0.00021,2]
[322140194,1712845833029,-565.03104678,0.00021,2]
[322140195,1712845833052,-639.84087267,0.00021,2]
[322140196,1712845833064,-1479.4257306,0.00021,2]
[322140197,1712845833076,-862.41551117,0.00021,2]
[322140198,1712845833090,-32024.30176494,0.00021,2]
[322140199,1712845833102,-4835.2955,0.00021,2]
[322140200,1712845833113,-5279.3367152,0.00021,2]
[322140201,1712845833887,-15.15554243,0.00021,2]
[322140202,1712845833900,-105455.42957237,0.00021,2]
[322140203,1712845833934,-460.000005,0.00021,2]
[322140307,1712845839117,-194.22149447,0.00021,2]
[322140308,1712845839127,-1193.90679422,0.00021,2]
[322140309,1712845839205,-550.13,0.00021,2]
[322140310,1712845839217,-1000.0,0.00021,2]
[322140328,1712845840121,-226.9723727,0.0002099,2]
[322140329,1712845840130,-527.64,0.0002099,3]
[322140330,1712845840140,-16641.4567664,0.00021,2]
[322140331,1712845840180,-256.74651684,0.00021,2]
[322140332,1712845840192,-36147.22364023,0.00021,2]
[322140333,1712845840444,-2097.36,0.00021,2]
[322140397,1712845843133,-13976.5607997,0.00021,2]
[322140402,1712845843187,-2379.75000075,0.00021,2]
[322140406,1712845843675,-2386.93290867,0.00021,2]
[322140410,1712845843730,-3226.70373795,0.00021,2]
[322140412,1712845843742,-1199.99765893,0.00021,2]
[322140413,1712845843754,-1199.97998366,0.00021,2]
[322140415,1712845843770,-1199.99342736,0.00021,2]
[322140417,1712845843782,-1492.56253828,0.00021,2]
[322140418,1712845843795,-10493.6125,0.00021,2]
[322140436,1712845846347,-2483.82601714,0.00020999,2]
[322140437,1712845846364,-780.9026156,0.00020999,2]
[322140438,1712845846392,-698.24124381,0.00020999,2]
[322140439,1712845846408,-1780.92426733,0.00020999,2]
[322140440,1712845846423,-646.0,0.00021,2]
[322140441,1712845846439,-3865.83448886,0.00021,2]
[322140442,1712845846655,-10523.1,0.00021,2]
[322140451,1712845887010,398.35,0.00019609,2]
[322140452,1712845922531,189.08,0.00029904,30]
[322140453,1712845980707,388.7283438,0.00019948,2]
[322140454,1712846010057,195.91,0.00020098,2]
[322140456,1712846165109,2324.619999,0.00019921,2]
[322140457,1712846179225,1910.87,0.00020251,2]
[322140458,1712846291966,186.87,0.00020083,2]
[322140459,1712846413834,378.43,0.00018155,2]
[322140460,1712846414061,378.43,0.00020419,2]
[322140461,1712846462358,192.72,0.00020216,2]
[322140462,1712846462578,192.72,0.00020272,2]
[322140463,1712846462796,192.72,0.00020327,2]
[322140464,1712846463037,192.72,0.00020383,2]
[322140465,1712846463125,262.4,0.00020066,2]
[322140466,1712846463284,192.72,0.00020438,2]
[322140467,1712846463513,192.72,0.00020494,2]
[322140468,1712846503410,1891.56,0.00019976,2]
[322140477,1712846739053,447434.01986383,0.00033399,30]
[322140478,1712846746545,-150.0,0.00020546,2]
[322140479,1712846746567,-1041.92528332,0.00020546,2]
[322140480,1712846746591,-19403.17915101,0.00020547,2]
[322140481,1712846746613,-192.72,0.00020549,2]
[322140482,1712846746635,-192.72,0.00020605,2]
[322140483,1712846746657,-192.72,0.0002066,2]
[322140484,1712846746678,-1000.0,0.00020698,2]
[322140485,1712846746707,-561.5264,0.000207,2]
[322140486,1712846746729,-154.8585,0.000207,2]
[322140487,1712846746751,-1325.1729,0.000207,2]
[322140488,1712846746774,-167.41,0.00020701,2]
[322140489,1712846746796,-192.72,0.00020716,2]
[322140490,1712846746816,-192.72,0.00020771,2]
[322140491,1712846746837,-192.72,0.00020826,2]
[322140492,1712846746862,-1000.0,0.00020832,2]
[322140493,1712846746886,-200.0,0.00020832,2]
[322140494,1712846746910,-192.72,0.00020882,2]
[322140495,1712846746933,-4506.66915258,0.0002089,2]
[322140496,1712846746961,-534.7441,0.00020895,2]
[322140497,1712846746983,-156.11056772,0.00020898,2]
[322140498,1712846747005,-413.09680477,0.00020899,2]
[322140499,1712846747027,-13282.64609013,0.00020899,2]
[322140500,1712846747049,-499.99,0.00020899,2]
[322140501,1712846747075,-150.99,0.00020899,2]
[322140502,1712846747101,-174.38863377,0.000209,2]
[322140503,1712846747125,-6371.2946528,0.000209,2]
[322140504,1712846747147,-1000.0,0.000209,2]
[322140505,1712846747167,-175.06096649,0.000209,2]
[322140506,1712846747188,-150.99,0.000209,2]
[322140507,1712846747218,-2430.03636868,0.000209,2]
[322140508,1712846747240,-152.7707035,0.000209,2]
[322140509,1712846747262,-7500.0,0.000209,2]
[322140510,1712846747286,-45168.69584038,0.000209,2]
[322140511,1712846747307,-896.67860524,0.000209,2]
[322140512,1712846747328,-6525.23931507,0.000209,2]
[322140513,1712846747350,-2306.54220335,0.000209,2]
[322140514,1712846747369,-825.40698398,0.000209,2]
[322140515,1712846747391,-192.72,0.00020937,2]
[322140516,1712846747411,-208.99970042,0.0002099,2]
[322140517,1712846747431,-208.99970042,0.0002099,2]
[322140518,1712846747460,-208.99970042,0.0002099,2]
[322140519,1712846747485,-351.76,0.0002099,3]
[322140520,1712846747507,-192.72,0.00020993,2]
[322140521,1712846747530,-1254.03701596,0.00020998,2]
[322140522,1712846747552,-1045.38886647,0.00020998,2]
[322140523,1712846747572,-393.10151959,0.00020999,2]
[322140524,1712846747594,-533.0,0.00021,2]
[322140525,1712846747613,-247.99272375,0.00021,2]
[322140526,1712846747637,-1970015.07969818,0.00021,2]
[322140527,1712846747658,-217.78,0.00021,2]
[322140528,1712846747684,-55273.05997566,0.00021,2]
[322140529,1712846747714,-700.0,0.00021,2]
[322140530,1712846747736,-420.92,0.00021,2]
[322140531,1712846747761,-394.0,0.00021,2]
[322140532,1712846747784,-2090704.95233535,0.00021,2]
[322140533,1712846747806,-434.31874735,0.00021,2]
[322140534,1712846747828,-550.0,0.00021,3]
[322140535,1712846747849,-508.41843,0.00021,2]
[322140536,1712846750707,934.7811817,0.000209,2]
[322140537,1712846795769,185.80229,0.00021,2]
[322140538,1712846826571,7500.0,0.000209,2]
[322140539,1712846838517,423.68203,0.00021,2]
[322140543,1712846881312,154.83524,0.00021,2]
[322140544,1712846933734,340.58,0.00019372,2]
[322140545,1712846935574,353.06835,0.00021,2]
[322140555,1712846979143,154.83524,0.00021,2]
[322140556,1712846979363,3581.3306268,0.00020992,2]
[322140557,1712847021244,294.22363,0.00021,2]
[322140590,1712847032368,-8042.44897229,0.00021006,2]
[322140599,1712847032815,-1413.80886,0.00021006,2]
[322140600,1712847032846,-1481.39350435,0.00021006,2]
[322140656,1712847038942,-742.71129895,0.00021006,2]
[322140658,1712847038955,-27636.45686391,0.00021006,2]
[322140660,1712847038964,-3648.6147404,0.0002102,2]
[322140662,1712847038974,-150.0,0.00021033,2]
[322140664,1712847038983,-150.0,0.00021033,2]
[322140666,1712847038992,-2384.1165091,0.00021034,2]
[322140668,1712847039001,-229.98,0.00021072,2]
[322140670,1712847039010,-229.98,0.00021077,2]
[322140672,1712847039019,-229.98,0.00021083,2]
[322140674,1712847039028,-229.98,0.00021088,2]
[322140676,1712847039037,-229.98,0.00021094,2]
[322140678,1712847039047,-229.98,0.00021099,2]
[322140681,1712847039057,-303.69,0.00021104,2]
[322140683,1712847039066,-229.98,0.00021105,2]
[322140685,1712847039075,-229.98,0.0002111,2]
[322140687,1712847039084,-229.98,0.00021116,2]
[322140689,1712847039093,-229.98,0.00021121,2]
[322140691,1712847039102,-229.98,0.00021127,2]
[322140693,1712847039112,-229.98,0.00021133,2]
[322140695,1712847039121,-229.98,0.00021138,2]
[322140697,1712847039133,-229.98,0.00021144,2]
[322140699,1712847039143,-229.98,0.00021149,2]
[322140701,1712847039153,-229.98,0.00021155,2]
[322140703,1712847039162,-229.98,0.0002116,2]
[322140705,1712847039172,-229.98,0.00021166,2]
[322140707,1712847039181,-229.98,0.00021171,2]
[322140709,1712847039191,-229.98,0.00021177,2]
[322140711,1712847039200,-2585.66441453,0.00021212,2]
[322140713,1712847039210,-225.0,0.00021334,2]
[322140715,1712847039219,-3304.51728003,0.00021339,2]
[322140717,1712847039230,-145.99497797,0.00021357,2]
[322140719,1712847039242,-434.76295497,0.00021357,2]
[322140721,1712847039254,-711.66948879,0.00021357,2]
[322140723,1712847039263,-160.6,0.00021428,2]
[322140726,1712847039273,-340.58,0.00021635,2]
[322140727,1712847039283,-160.6,0.00021652,2]
[322140730,1712847039293,-737.6,0.0002174,2]
[322140732,1712847039302,-160.6,0.00021875,2]